Cogmind - Beta 13 @@@ ROGUE MODE // 2024.04.06 @ 22:33:54 Player: Grewsome Result: Self-destructed Performance ------------- Evolutions (2) 1000 Regions Visited (3) 600 Robots Destroyed (17) 85 Value Destroyed (212) 212 Prototype IDs (0) 0 Alien Tech Used (0) 0 Bonus (0) 0 TOTAL SCORE: 1897 Bonus ------- None Cogmind --------- Core Integrity 315/550 Matter 22/300 Energy 5/100 System Corruption 0% Temperature Cool (0) Movement Rolling (90) Location -8/Materials Parts ------- > --- POWER (1) -------- (None) > --- PROPULSION (4) --- Armored Wheel > --- UTILITY (4) ------ Weight Redist. System Hacking Suite > --- WEAPON (2) ------- (None) > --- INVENTORY (5) ---- Advanced Weight Redist. System Medium Laser Improved Datajack Peak State ------------ > --- POWER ------------ Light Ion Engine > --- PROPULSION ------- Flight Unit Flight Unit > --- UTILITY ---------- Weight Redist. System Sensor Array Hacking Suite > --- WEAPON ----------- Grenade Launcher Mining Laser > --- INVENTORY -------- Wheel Wheel Medium Laser Grenade Launcher [Rating: 11] Favorites ----------- Power Light Ion Engine Engine Light Ion Engine Propulsion Wheel Wheel Wheel Flight Unit Flight Unit Utility Hacking Suite Device Improved Terrain Scanner Storage Small Storage Unit Hackware Hacking Suite Weapon Grenade Launcher Energy Gun Medium Laser Ballistic Gun Light Assault Rifle Launcher Grenade Launcher Special Weapon Mining Laser Build | -11 -10 -9 -8 ------- Run | Yrd Mat Mat Mat Slots Evolved 4 | . . 2 2 Power . | . . . . Propulsion 2 | . . 1 1 Utility 2 | . . 1 1 Weapon . | . . . . Parts Attached 22 | 8 10 3 1 Power 1 | 1 . . . Engine 1 | 1 . . . Core . | . . . . Reactor . | . . . . Propulsion 5 | 2 2 . 1 Treads . | . . . . Leg . | . . . . Wheel 3 | 2 . . 1 Hover . | . . . . Flight 2 | . 2 . . Utility 5 | 2 2 1 . Device 3 | 1 1 1 . Storage 1 | 1 . . . Processor . | . . . . Hackware 1 | . 1 . . Protection . | . . . . Artifact . | . . . . Weapon 11 | 3 6 2 . Energy Gun 4 | 2 2 . . Energy Cannon . | . . . . Ballistic Gun 1 | 1 . . . Ballistic Cannon . | . . . . Launcher 4 | . 2 2 . Special Weapon 2 | . 2 . . Impact Weapon . | . . . . Slashing Weapon . | . . . . Piercing Weapon . | . . . . Special Melee Weapon . | . . . . Unidentified Prototypes . | . . . . Parts Lost 6 | . . 2 4 Power 1 | . . . 1 Propulsion 2 | . . 1 1 Utility 1 | . . . 1 Weapon 2 | . . 1 1 Highest Loss Streak 4 | . . 2 4 To Critical Strikes . | . . . . Average Slot Usage (%) 77 | . 92 77 41 Engine 11 | . 14 11 4 Wheel 9 | . 18 . 1 Flight 12 | . 9 20 4 Device 15 | . 12 21 15 Storage 4 | . 9 . . Hackware 6 | . 2 11 9 Energy Gun 2 | . 4 . . Launcher 11 | . 12 13 6 Special Weapon 3 | . 7 . . Naked Turns . | . . . . Heaviest Build 14 | 13 14 10 7 Greatest Support 20 | 20 20 14 18 Greatest Overweight (x) . | . . . . Average Overweight (x) . | . . . . Largest Inventory Capacity 8 | 8 8 5 5 Average Capacity 5 | 5 6 5 5 Most Carried 5 | 2 5 5 4 Average Carried 2 | . 2 4 2 Final Capacity 8 | 8 5 5 5 Final Carried 4 | 2 4 2 3 Class Distribution -------------------- 100% | Mutant Dominant Class ---------------- Mutant | -10/Materials Mutant | -9/Materials Mutant | -8/Materials Resources | -11 -10 -9 -8 ----------- Run | Yrd Mat Mat Mat Matter Collected 240 | 182 58 . . Remotely . | . . . . Salvage Created 259 | 120 139 . . Parts 31 | 8 23 . . Haulers Intercepted 1 | . 1 . . Recyclers Shooed 1 | 1 . . . Parts Field Recycled . | . . . . Retrieved Matter . | . . . . Parts Self-Destructed . | . . . . Prevented . | . . . . Kills | -11 -10 -9 -8 ------- Run | Yrd Mat Mat Mat Combat Hostiles Destroyed 5 | . 5 . . Guns 1 | . 1 . . AOE 4 | . 4 . . Classes Destroyed 9 | 2 7 . . Worker 1 | . 1 . . Builder 2 | . 2 . . Tunneler 3 | 2 1 . . Hauler 1 | . 1 . . Recycler 1 | 1 . . . Operator 1 | . 1 . . Watcher 3 | . 3 . . Swarmer 3 | . 3 . . Grunt 2 | . 2 . . Best Kill Streak 5 | 1 5 . . Combat Bots Only 3 | . 3 . . Max Kills in Single Turn 3 | 1 3 . . Gunslinging . | . . . . Exploded 2 | . 2 . . Melee . | . . . . Uniques/NPCs Destroyed . | . . . . Combat | -11 -10 -9 -8 -------- Run | Yrd Mat Mat Mat Hostile Shots Fired 87 | . 12 32 43 Missed 37 | . 5 14 18 Damage Taken 687 | . 82 219 386 Core 348 | . 28 85 235 Absorbed by Shields . | . . . . Core Remaining (%) 88 | 100 88 78 . Volleys Fired 69 | 36 30 3 . Largest 2 | 2 1 1 . Hottest 100 | 100 100 30 . Shots Fired 74 | 41 30 3 . Gun 57 | 41 16 . . Cannon . | . . . . Launcher 11 | . 8 3 . Special 6 | . 6 . . Kinetic 31 | 31 . . . Thermal 32 | 10 22 . . Explosive 11 | . 8 3 . Electromagnetic . | . . . . Robot Hit Streak 5 | 4 5 . . Robot Miss Streak 4 | 4 3 . . Penetration Max . | . . . . Secondary Targets . | . . . . Shots Hit Robots 32 | 18 14 . . Core Hits 25 | 6 18 1 . Critical Kills . | . . . . Critical Parts Destroyed 1 | 1 . . . Critical Strikes 3 | 1 2 . . Burn 2 | . 2 . . Destroy 1 | 1 . . . Melee Attacks . | . . . . Impact . | . . . . Slashing . | . . . . Piercing . | . . . . Sneak Attacks . | . . . . Combat Hostiles . | . . . . Follow-up Attacks . | . . . . Damage Inflicted 1199 | 192 895 112 . Guns 316 | 192 124 . . Cannons . | . . . . Explosions 835 | . 723 112 . Melee . | . . . . Ramming . | . . . . Kinetic 92 | 92 . . . Thermal 272 | 100 172 . . Explosive 835 | . 723 112 . Electromagnetic . | . . . . Impact . | . . . . Slashing . | . . . . Piercing . | . . . . Highest Corruption . | . . . . Average Corruption . | . . . . Corruption Purged . | . . . . Corruption Blocked . | . . . . Overload Shots . | . . . . Overflow Damage 56 | . 50 6 . Projectiles . | . . . . Explosions 56 | . 50 6 . Melee . | . . . . Knockbacks . | . . . . Impact . | . . . . Kinetic . | . . . . Secondary . | . . . . Self-Inflicted Damage . | . . . . Shots . | . . . . Rammed . | . . . . Targets Rammed . | . . . . Kicked . | . . . . Crushed . | . . . . Highest Temperature 117 | 117 92 10 . Average Temperature 33 | 54 27 8 . Received Heat Transfer 378 | . 45 117 216 Siege Activations . | . . . . Robots Corrupted . | . . . . Combat Hostiles . | . . . . Parts Fried . | . . . . Impact Corruptions . | . . . . Robots Melted . | . . . . Combat Hostiles . | . . . . Parts Melted 2 | 1 1 . . Heat Transferred 914 | 296 618 . . Parts Sabotaged . | . . . . Parts Stolen . | . . . . Parts Stripped . | . . . . Power Chain Reactions . | . . . . Alert | -11 -10 -9 -8 ------- Run | Yrd Mat Mat Mat Peak Influence 455 | 15 237 455 331 Initial 191 | . 9 81 191 Average 121 | 5 76 213 244 Maximum Alert Level 2 | . 1 2 1 Low Security (%) 71 | 100 93 52 9 Level 1 26 | . 6 41 90 Level 2 1 | . . 5 . Level 3 . | . . . . Level 4 . | . . . . Level 5 . | . . . . High Security . | . . . . Max Security . | . . . . Squads Dispatched 6 | . 1 4 1 Investigation 3 | . . 3 . Extermination . | . . . . Reinforcement 3 | . 1 1 1 Assault . | . . . . Garrison . | . . . . Intercept . | . . . . Searches Triggered . | . . . . Construction Impeded . | . . . . Haulers Reinforced . | . . . . Active Scanning Responses . | . . . . Cargo Convoy Interrupts . | . . . . Stealth | -11 -10 -9 -8 --------- Run | Yrd Mat Mat Mat Distress Signals 3 | . 1 2 . Communications Jammed . | . . . . Distress Signals . | . . . . Times Spotted 49 | . 9 17 23 Peak Tracking Total 13 | . 5 12 13 Tactical Retreats 9 | . 1 4 4 Traps | -11 -10 -9 -8 ------- Run | Yrd Mat Mat Mat Traps Triggered . | . . . . Indirectly . | . . . . Trap Hack Attempts . | . . . . Triggered . | . . . . Disarmed . | . . . . Reprogrammed . | . . . . Reused . | . . . . Traps Extracted . | . . . . Installed . | . . . . Triggered . | . . . . Machines | -11 -10 -9 -8 ---------- Run | Yrd Mat Mat Mat Machines Disabled 1 | . 1 . . Max in Single Turn 1 | . 1 . . Machines Repaired . | . . . . Machines Dismantled . | . . . . Machines Sabotaged . | . . . . Overloaded Fab Kills . | . . . . Hacking | -11 -10 -9 -8 --------- Run | Yrd Mat Mat Mat Machines Accessed 10 | . 4 6 . Terminals 8 | . 4 4 . Fabricators . | . . . . Repair Stations . | . . . . Recycling Units 2 | . . 2 . Scanalyzers . | . . . . Garrison Access . | . . . . Total Hacks 32 | . 14 18 . Successful 16 | . 5 11 . Failed 16 | . 9 7 . Catastrophic . | . . . . Database Lockouts . | . . . . Manual . | . . . . Terminals 25 | . 14 11 . Fabricators . | . . . . Repair Stations . | . . . . Recycling Units 7 | . . 7 . Scanalyzers . | . . . . Garrison Access . | . . . . Terminal Hacks 11 | . 5 6 . Emergency Access Points 2 | . . 2 . Scanalyzer Index 1 | . 1 . . Alert Level 1 | . 1 . . Unreport Threat 1 | . 1 . . Hauler Manifests 1 | . 1 . . Zone Layout 5 | . 1 4 . Fabricator Hacks . | . . . . Repair Station Hacks . | . . . . Recycling Unit Hacks 5 | . . 5 . Recycle Component 2 | . . 2 . Process 1 | . . 1 . Retrieve Matter 2 | . . 2 . Scanalyzer . | . . . . Garrison Access Hacks . | . . . . Unauthorized Hacks . | . . . . Terminals . | . . . . Fabricators . | . . . . Repair Stations . | . . . . Recycling Units . | . . . . Scanalyzers . | . . . . Garrison Access . | . . . . Data Cores Recovered . | . . . . Used . | . . . . Hacking Detections 8 | . 4 4 . Full Trace Events 7 | . 3 4 . Feedback Events . | . . . . Feedback Blocked . | . . . . Robot Schematics Acquired . | . . . . Robots Built . | . . . . Authchips . | . . . . Time . | . . . . Total Robot Build Rating . | . . . . Part Schematics Acquired . | . . . . Parts Built . | . . . . Authchips . | . . . . Time . | . . . . Total Part Build Rating . | . . . . Parts Repaired . | . . . . Time . | . . . . Parts Recycled 2 | . . 2 . Recycled Matter 13 | . . 13 . Retrieved Matter 13 | . . 13 . Retrieved Components . | . . . . Parts Scanalyzed . | . . . . Part Schematics Acquired . | . . . . Parts Damaged . | . . . . Bothacking | -11 -10 -9 -8 ------------ Run | Yrd Mat Mat Mat Used RIF Installer . | . . . . Robots Hacked . | . . . . Non-combat . | . . . . Combat . | . . . . Robot Hacks Applied . | . . . . Relay Couplers Released . | . . . . Fabnet Peak Effective % . | . . . . Robots Rewired . | . . . . Allies Hacked . | . . . . Hacks Repelled . | . . . . Allies | -11 -10 -9 -8 -------- Run | Yrd Mat Mat Mat Total Allies . | . . . . Largest Group . | . . . . Highest-Rated Group . | . . . . Highest-Rated Ally . | . . . . Total Orders . | . . . . Ally Attacks . | . . . . Total Damage . | . . . . Kills . | . . . . Allies Corrupted . | . . . . Allies Melted . | . . . . Intel | -11 -10 -9 -8 ------- Run | Yrd Mat Mat Mat Robot Analysis Total . | . . . . Derelict Logs Recovered . | . . . . Drone Launches . | . . . . Drone Recoveries . | . . . . Exploration | -11 -10 -9 -8 ------------- Run | Yrd Mat Mat Mat Turns Passed 988 | 226 358 251 153 Spaces Moved 1322 | 174 394 496 258 Core 99 | 8 . . 91 Treads . | . . . . Legs . | . . . . Wheels 377 | 166 176 . 35 Hover . | . . . . Flight 846 | . 218 496 132 Fastest Speed 37 | 50 37 37 40 Average Speed 51 | 78 56 37 50 Slowest Speed 90 | 80 80 40 90 Overloaded Moves . | . . . . Propulsion Burnouts . | . . . . Robots Hopped 5 | . . 2 3 Cave-ins Triggered . | . . . . Exploration Rate (%) 32 | 7 57 39 26 Regions Visited 3 Branch Regions . Pre-discovered Areas . | . . . . Known Exits Taken . | . . . . Unknown Exits Taken 3 | 1 1 1 . Scrap Searched . | . . . . Spaces Dug . | . . . . Terrain Destroyed 88 | . 68 20 . Melee . | . . . . Projectile 4 | . 4 . . AOE 84 | . 64 20 . Terrain Rammed . | . . . . Walls Destroyed . | . . . . Machines Disabled . | . . . . Actions | -11 -10 -9 -8 --------- Run | Yrd Mat Mat Mat Total 1553 | 228 491 556 278 Wait 109 | . 40 49 20 Move 1309 | 173 393 491 252 Hop 5 | . . 2 3 Pick Up 24 | 10 8 4 2 Fast Attach . | . . . . Attach 20 | 8 8 3 1 Detach 5 | . 4 1 . Swap 2 | . 2 . . Drop 10 | 1 6 3 . Fire 69 | 36 30 3 . Melee . | . . . . Ram . | . . . . Kick . | . . . . Crush . | . . . . Escape Stasis . | . . . . Rewire . | . . . . Trap . | . . . . Miscellaneous . | . . . . Route ------- -11/Scrapyard -10/Materials (discovered 3 exits: *Mat x2 / [*Min]) -9/Materials (discovered 2 exits: [*Mat x2]) -8/Materials History --------- Turn | Location | Event 17 | -11/Scrapyard | Discovered new exit (range 15) 227 | -11/Scrapyard | Entered Materials 277 | -10/Materials | Discovered new exit (range 8) 300 | -10/Materials | Build established: Mutant 424 | -10/Materials | Discovered new exit (range 7) 511 | -10/Materials | Discovered new exit (range 15) 585 | -10/Materials | Entered another Materials area 585 | -9/Materials | Evolved 2 slots: Propulsion x1, Utility x1 766 | -9/Materials | Discovered new exit (range 10) 829 | -9/Materials | Discovered new exit (range 15) 836 | -9/Materials | Entered another Materials area 836 | -8/Materials | Evolved 2 slots: Propulsion x1, Utility x1 977 | -8/Materials | Lost 4 parts (1p1n1u1w) 989 | -8/Materials | Self-destructed Last Messages --------------- >>Recycle(Wheel) Accepting Wheel... 00827_ T-07 Excavator is excavating. 00829_ EXIT=FOUND 00831_ T-07 Excavator is excavating. PARAMETERS=PROPULSION+1,UTILITY+1 LOCATION=UNKNOWN GOAL=ESCAPE 00848_ O-16 Technician: "IFF HANDSHAKE FAILED. SECURING TERMINAL." 00850_ ALERT: Hostiles spotted, dispatching reinforcements to Terminal M006. 00856_ Acquired Imp. Datajack. 00907_ Lgt. Ion Engine destroyed. 00910_ Flight Unit destroyed. 00915_ K-01 Serf collects debris. 00918_ K-01 Serf cleans the Hadron Collector. 00938_ Sensor Array destroyed. 00946_ Grenade Launcher destroyed. 00956_ Acquired Arm. Wheel. Map ----- +----------------------------------------------------+ | ?????????????????????????????????????????????????? | | ?????????????????????????????????????????????????? | | ?????????????????????????????????????????????????? | | ?????????????????????????????????????????????????? | | ?????????????????????????????????????????????????? | | ?????????????????????????????????????????????????? | | ?????????????????????????????????????????????????? | | ?????????????????????????????????????????????????? | | ?????????????????????????????????????????????????? | | #########????????????????????????????????????????? | | #????????????????????????????????????????? | | #????????????????????????????????????????? | | #????????????????????????????????????????? | | #????????????????????????????????????????? | | #????????????????????????????????????????? | | #????????????????????????????????????????? | | #????????????????????????????????????????? | | #????????????????????????????????????????? | | #????????????????????????????????????????? | | #????????????????????????????????????????? | | #????????????????????????????????????????? | | #????????????????????????????????????????? | | #+##############################?????????????????? | | #?????????????????? | | g * #?????????????????? | | !^= l""" @ #?????????????????? | | !! """ #?????????????????? | | = """ ss #?????????????????? | | # ###### """ ######/#+######????????????? | | # #????# s # g #????????????? | | # #????# # #????????????? | | #+##???# """ """ # #????????????? | | #???# """ """ # #????????????? | | #???# """ """ # """ """ """ #????????????? | | #???# """ """ # """ """ """ #????????????? | | #???# # """ """ """ #????????????? | | #???# # """ """ """ #????????????? | | #???## ########### """ """ """ #????????????? | | !#????# #?????????# #????????????? | | #????# #?????????# #????????????? | | ####????# #?????????###############????????????? | | ####????# ????????????????????????????????????? | | ????# ????????????????????????????????????? | | ????# ????????????????????????????????????? | | """ ????#####????????????????????????????????????? | | """ #???????????????????????????????????????????? | | """ #???????????????????????????????????????????? | | #???????????????????????????????????????????? | | ! #???????????????????????????????????????????? | | ######???????????????????????????????????????????? | +----------------------------------------------------+ Best States ------------- Heat Dissipation 31 Energy Generation 10 Energy Capacity 125 Matter Stores 181 Matter Capacity 300 Sight Range 16 Robot Scan Range 14 Terrain Scan Range 16 Terrain Scan Density 10 Additional Mass Support 6 Evasion (%) 62 Offensive Hacking 10 Item Schematics ----------------- None Robot Schematics ------------------ None Fabricated ------------ Nothing Alien Tech Used ----------------- None Achievements -------------- None Challenges ------------ None Game ------ Seed AccelerationLinearBay Manual? 0 Play Time 00:23:21 Cumulative 7.6 hours Start 2024.04.06 @ 21:58:35 End 2024.04.06 @ 22:33:54 Sessions 1 Manual Loads 0 Difficulty Rogue Special Mode None Game No. 11 Rogue 8 Adventurer 3 Explorer 0 Win Type - Total 0 Types 0/0/0/0/0/0/0/0/0 Lore% 3 Gallery% 21 Achievement% 16 Wizard Run 0 Options --------- Layout 1 ASCII 0 Keyboard 0 Movement Mouse Keybinds 0 Fullscreen 1 Font 32/SmallcapsGlow Map View 50x35 Zoom Use 0% Tactical HUD 1 Map Filters NONE Filters NONE Steam 1 RUN: 04498e5c-cb16-4598-bf9e-6ff69315eccb